bitfinex/quotes_ETHUSD_20250328
["timestamp","ask_amount","ask_price","bid_price","bid_amount"]
[1743160010315,10.47303,1909.7,1909.3,11.684958]
[1743160010316,5.23642,1909.7,1909.3,11.684958]
[1743160010625,13.35282806,1909.7,1909.3,11.684958]
[1743160010824,13.35282806,1909.7,1909.4,0.25773822]
[1743160011131,13.35282806,1909.7,1909.3,11.684958]
[1743160011338,13.35282806,1909.7,1909.5,0.25773822]
[1743160011539,13.35282806,1909.7,1909.3,11.684958]
[1743160011736,8.11619806,1909.7,1909.6,0.25773822]
[1743160011938,5.23734,1909.4,1909.2,14.5]
[1743160012163,5.23734,1909.4,1909.1,33.4809]
[1743160012453,10.47477,1909.4,1909.1,33.4809]
[1743160012816,5.23752,1909.3,1909.1,33.4809]
[1743160013039,5.23752,1909.3,1909.1,32.715]
[1743160013541,5.23735,1909.4,1909.1,32.715]
[1743160015541,10.47478,1909.4,1909.1,32.715]
[1743160015837,10.47478,1909.4,1909.2,0.8178]
[1743160016041,0.8321,1910.3,1909.9,0.8178]
[1743160016275,5.23464,1910.4,1910.0,0.25340824]
[1743160016441,10.46876,1910.5,1910.0,5.48884824]
[1743160016636,5.23451,1910.4,1910.0,10.72427824]
[1743160017069,5.23451,1910.4,1910.0,19.98883824]
[1743160017441,5.23451,1910.4,1910.0,14.75340824]
[1743160017770,5.23451,1910.4,1910.0,19.98895824]
[1743160017940,5.23457,1910.4,1910.1,5.23531]
[1743160018141,5.23457,1910.4,1910.1,5.48498044]
[1743160018366,8.11401806,1910.5,1910.1,5.48498044]
[1743160018535,10.46918,1910.4,1910.1,0.24967044]
[1743160019365,5.2345,1910.4,1910.1,0.24967044]
[1743160019950,5.23487,1910.3,1910.1,0.24967044]
[1743160020275,5.23505,1910.2,1910.1,0.24967044]
[1743160020852,5.23505,1910.2,1909.9,5.8798]
[1743160021075,10.47026,1910.2,1910.0,0.24213095]
[1743160021395,5.23532,1910.1,1910.0,0.24213095]
[1743160021550,11.11509806,1910.1,1910.0,0.24213095]
[1743160021750,10.47164,1910.0,1909.6,10.29148]
[1743160021950,5.2358,1910.0,1909.6,15.52802]
[1743160022696,5.2358,1910.0,1909.7,5.2364]
[1743160023056,5.2358,1910.0,1909.6,15.52806]
[1743160023364,10.47156,1910.0,1909.6,10.29148]
[1743160023562,10.47156,1910.0,1909.7,0.2233743]
[1743160023777,10.47152,1910.0,1909.7,0.2233743]
[1743160024088,11.11515806,1910.1,1909.7,5.4597043]
[1743160024276,5.23561,1910.0,1909.7,5.4597043]
[1743160025373,2.09930381,1910.2,1909.7,0.2233743]
[1743160025653,3.0,1910.2,1909.9,5.23563]
[1743160026085,8.23506,1910.2,1910.0,0.2233743]
[1743160026611,3.0,1910.2,1910.0,0.2233743]
[1743160027296,8.23508,1910.2,1910.0,0.2233743]
[1743160027495,3.0,1910.2,1910.0,0.2233743]
[1743160028095,3.0,1910.2,1910.0,5.4589643]
[1743160028728,3.0,1910.2,1910.0,0.2233743]
[1743160029295,3.0,1910.2,1910.0,5.4589343]
[1743160029472,10.46925,1910.4,1910.0,5.4589343]
[1743160029681,3.0,1910.3,1910.0,5.4589343]
[1743160029916,8.23487,1910.3,1910.0,0.2233743]
[1743160030995,8.23487,1910.3,1910.0,5.4589343]
[1743160031201,8.23487,1910.3,1910.0,0.2233743]
[1743160032021,3.0,1910.3,1910.0,0.2233743]
[1743160032180,5.2352,1910.2,1910.0,0.2233743]
[1743160032380,5.23532,1910.1,1909.8,25.76585]
[1743160032918,5.23532,1910.1,1909.8,0.7939]
[1743160032919,5.23541,1910.1,1909.8,0.7939]
[1743160033120,7.83499387,1910.0,1909.7,10.28041]
[1743160033278,2.59927387,1910.0,1909.7,15.51668]
[1743160033678,2.59927387,1910.2,1909.7,6.673128]
[1743160034017,3.0,1910.3,1910.0,10.47093]
[1743160034317,3.0,1910.3,1910.0,5.23542]
[1743160034709,3.0,1910.3,1910.1,5.23519]
[1743160035304,3.0,1910.4,1910.2,5.23496]
[1743160035491,3.0,1910.4,1910.1,10.4704]
[1743160036005,8.61256387,1910.6,1910.1,6.28223]
[1743160036189,5.23423,1910.5,1910.1,5.23519]
[1743160036613,7.83378387,1910.4,1910.1,5.23519]
[1743160036814,2.59927387,1910.4,1910.1,10.47034]
[1743160037015,7.83380387,1910.4,1910.1,5.23515]
[1743160037209,7.83380387,1910.4,1910.0,5.23548]
[1743160037943,13.06846387,1910.4,1910.0,5.23548]
[1743160038115,7.83380387,1910.4,1910.0,10.47088]
[1743160038303,7.83380387,1910.4,1910.0,5.23541]
[1743160038618,7.83380387,1910.4,1910.1,0.2236361]
[1743160038819,7.83380387,1910.4,1910.1,5.4589561]
[1743160039228,2.59927387,1910.4,1910.1,10.6940961]
[1743160039431,2.59927387,1910.4,1910.1,5.4587761]
[1743160039634,5.2348,1910.3,1910.1,0.2236361]
[1743160040231,7.83381387,1910.4,1910.1,0.2236361]
[1743160040737,7.83381387,1910.4,1910.1,5.4589561]
[1743160040941,2.59927387,1910.4,1910.1,0.2236361]
[1743160041230,13.06959387,1910.2,1910.0,5.039]
[1743160041543,5.23563,1910.0,1909.8,5.039]
[1743160041845,7.83490387,1910.0,1909.8,5.039]
[1743160042406,7.83490387,1910.0,1909.7,6.04832]
[1743160042407,2.59927387,1910.0,1909.7,0.8121]
[1743160042602,5.23602,1909.9,1909.7,5.041]
[1743160042826,7.83529387,1909.9,1909.7,5.041]
[1743160043720,5.23602,1909.9,1909.7,5.041]
[1743160044738,5.23602,1909.9,1909.6,19.73665]
[1743160044903,5.23602,1909.9,1909.6,24.77465]
[1743160046034,5.23602,1909.9,1909.6,19.538]
[1743160046714,5.23656,1909.7,1909.5,27.693]
[1743160046904,8.61322387,1909.8,1909.5,27.693]
[1743160047103,7.83542387,1909.8,1909.6,14.5]
[1743160047413,7.83490387,1910.0,1909.6,25.72945]
[1743160047723,2.59927387,1910.0,1909.6,15.2564]
[1743160047898,3.37707387,1910.2,1909.7,1.52564]
[1743160048100,5.23625,1909.8,1909.6,0.7564]
[1743160048539,5.23625,1909.8,1909.6,15.2564]
[1743160048708,5.23625,1909.8,1909.6,14.5]
[1743160048905,5.23609,1909.9,1909.6,19.73667]
[1743160049635,5.23609,1909.9,1909.6,14.5]
[1743160050132,13.07069387,1910.0,1909.6,19.73656]
[1743160050335,7.83492387,1910.0,1909.6,24.97312]
[1743160050519,7.83492387,1910.0,1909.6,19.73656]
[1743160050719,5.2361,1909.9,1909.6,14.5]
[1743160050905,5.23626,1909.8,1909.6,14.5]
[1743160051098,10.47257,1909.8,1909.6,14.5]
[1743160051346,5.23626,1909.8,1909.5,27.693]
[1743160051659,5.23663,1909.7,1909.5,27.693]
[1743160051958,5.23663,1909.7,1909.5,42.193]
[1743160052256,5.23661,1909.7,1909.5,42.193]
[1743160053521,5.23661,1909.7,1909.6,0.22599227]
[1743160054354,8.88316087,1909.7,1909.6,0.22599227]
[1743160054942,11.88316087,1909.7,1909.6,0.22599227]
[1743160056777,5.23672,1909.6,1909.3,19.73751]
[1743160056986,10.47363,1909.6,1909.4,0.22599227]
[1743160057171,10.47363,1909.6,1909.3,14.5]
[1743160057372,5.23672,1909.6,1909.4,0.22749794]
[1743160057578,16.07233387,1909.7,1909.3,19.73739]
[1743160057773,3.0,1909.7,1909.4,5.46461794]
[1743160057972,3.0,1909.7,1909.4,10.70171794]
[1743160058169,5.23565,1910.0,1909.5,0.86976767]
[1743160058349,13.82372387,1910.1,1909.7,5.23629]
[1743160058552,13.82368387,1910.1,1909.7,10.47258]
[1743160058741,5.2351,1910.2,1909.9,0.8174]
[1743160059146,5.23548,1910.1,1910.0,0.22906907]
[1743160059346,7.83475387,1910.1,1910.0,0.22906907]
[1743160059546,13.07028387,1910.1,1909.7,11.29011]
[1743160059743,7.83475387,1910.1,1909.8,5.46516907]
[1743160059945,5.2351,1910.2,1909.8,6.09336598]
[1743160060489,5.2351,1910.2,1909.9,5.23578]
[1743160061053,3.0,1910.2,1910.0,0.22906907]
[1743160061581,8.23513,1910.2,1910.0,0.22906907]
[1743160061749,6.04279,1910.5,1910.0,0.99256907]
[1743160061946,11.27719,1910.5,1910.1,5.23506]
[1743160062178,3.0,1910.4,1910.2,0.22553459]
[1743160062377,5.23451,1910.4,1910.2,0.22553459]
[1743160062595,5.23451,1910.4,1910.1,5.23532]
[1743160062782,5.23451,1910.4,1910.2,0.22553459]
[1743160063351,6.04264,1910.5,1910.2,0.22553459]
[1743160063582,5.23424,1910.5,1910.2,5.46055459]
[1743160063962,10.46864,1910.5,1910.2,0.22553459]
[1743160064187,5.23424,1910.5,1910.2,0.22553459]
[1743160064464,7.83351387,1910.5,1910.2,5.46058459]
[1743160064664,5.23424,1910.5,1910.2,5.46058459]
[1743160064864,5.23424,1910.5,1910.2,6.53015705]
[1743160065068,5.23424,1910.5,1910.2,1.29510705]
[1743160066397,5.99385,1910.9,1910.4,5.23433]
[1743160066602,8.2335,1910.8,1910.4,10.46886]
[1743160066800,8.2335,1910.8,1910.5,0.22435687]
[1743160066984,3.0,1910.8,1910.5,5.45857687]
[1743160067187,3.0,1910.8,1910.5,5.45848687]
[1743160067496,3.0,1910.8,1910.6,0.797]
[1743160067798,3.0,1910.8,1910.7,0.21905595]
[1743160067995,10.83269387,1910.8,1910.7,0.21905595]
[1743160068197,13.19387726,1910.8,1910.7,0.21905595]
[1743160068372,5.23474,1910.4,1910.0,11.03011]
[1743160068576,2.59927387,1910.3,1910.1,0.21905595]
[1743160069300,7.83408387,1910.3,1910.1,0.21905595]
[1743160070203,13.06904387,1910.3,1910.1,0.21905595]
[1743160070501,5.23505,1910.2,1910.1,0.21905595]
[1743160070901,5.23505,1910.2,1909.9,5.034]
[1743160071103,5.23505,1910.2,1910.1,0.21997193]
[1743160071281,5.23505,1910.2,1909.9,5.034]
[1743160071801,5.23505,1910.2,1910.0,0.21997193]
[1743160072097,5.23532,1910.1,1910.0,0.21997193]
[1743160073203,5.23505,1910.2,1910.0,0.21997193]
[1743160073375,5.23532,1910.1,1910.0,0.21997193]
[1743160073582,7.83459387,1910.1,1910.0,0.21997193]
[1743160074689,9.94775826,1910.1,1910.0,0.21997193]
[1743160075000,5.23621,1909.8,1909.5,10.26295]
[1743160075206,10.47253,1909.8,1909.6,0.21997193]
[1743160075805,5.23621,1909.8,1909.6,0.21997193]
[1743160078909,5.23621,1909.8,1909.6,14.71997193]
[1743160079307,5.23621,1909.8,1909.6,17.21826412]
[1743160079610,7.83514387,1909.9,1909.6,17.21826412]
[1743160079909,2.59927387,1909.9,1909.6,17.21826412]
[1743160080292,5.23528,1910.2,1909.7,0.7597]
[1743160080492,5.23527,1910.2,1909.8,5.23606]
[1743160080694,10.4705,1910.2,1909.8,5.45806066]
[1743160080899,5.23533,1910.1,1909.9,14.5]
[1743160081300,5.23523,1910.2,1910.0,0.22605774]
[1743160081811,5.23523,1910.2,1909.9,5.23574]
[1743160081978,8.23523,1910.2,1909.9,5.23574]
[1743160082398,8.23523,1910.2,1910.0,0.22605774]
[1743160082597,2.59927387,1910.3,1910.1,0.8207]
[1743160082797,5.23489,1910.3,1910.1,0.8207]
[1743160082996,5.23489,1910.3,1910.2,0.22605774]
[1743160083199,8.23489,1910.3,1910.2,0.22605774]
[1743160083784,10.83416387,1910.3,1910.2,0.22605774]
[1743160084386,13.22133526,1910.3,1910.2,0.22605774]
[1743160084680,5.23575,1910.0,1909.6,5.23657]
[1743160084882,2.59927387,1910.0,1909.7,5.2364]
[1743160085080,0.7803,1910.3,1909.8,6.06003]
[1743160085327,0.7803,1910.3,1909.9,5.23586]
[1743160085328,8.23514,1910.2,1909.9,5.23586]
[1743160085628,5.23514,1910.2,1909.9,6.38804177]
[1743160085823,5.23514,1910.2,1910.0,0.22605774]
[1743160086795,10.83377387,1910.4,1910.0,5.46156774]
[1743160087081,13.06844387,1910.4,1910.1,0.8268]
[1743160087625,5.23479,1910.3,1910.2,0.22605774]
[1743160088436,5.23521,1910.2,1909.9,0.8232]
[1743160088637,7.83448387,1910.2,1910.0,0.22605774]
[1743160088951,7.83433387,1910.2,1910.0,0.22605774]
[1743160089259,2.59927387,1910.2,1910.0,0.22605774]
[1743160089441,7.83382387,1910.4,1910.0,5.46155774]
[1743160089646,5.23478,1910.3,1910.0,5.46155774]
[1743160089815,5.23478,1910.3,1910.0,7.94845127]
[1743160090015,5.23478,1910.3,1910.1,0.2245525]
[1743160090856,7.83382387,1910.4,1910.1,5.4598325]
[1743160091058,7.83379387,1910.4,1910.1,0.2245525]
[1743160091558,5.23487,1910.3,1910.1,0.2245525]
[1743160092258,2.59927387,1910.2,1910.1,0.2245525]
[1743160092441,2.59927387,1910.2,1909.6,0.38760279]
[1743160092442,5.23614,1909.9,1909.4,5.237]
[1743160092661,5.23651,1909.7,1909.5,0.22448706]
[1743160092847,5.23651,1909.7,1909.3,11.08636]
[1743160093023,5.23697,1909.5,1909.4,0.20335288]
[1743160093350,5.23697,1909.5,1909.3,0.808]
[1743160093554,5.23697,1909.5,1909.4,0.20335288]
[1743160093753,7.83624387,1909.5,1909.4,0.20335288]
[1743160094050,5.23732,1909.4,1909.2,5.041]
[1743160094416,13.07339387,1909.5,1909.2,5.041]
[1743160095045,5.23725,1909.4,1909.2,5.041]
[1743160095248,5.23725,1909.4,1909.3,14.5]
[1743160096866,7.83624387,1909.5,1909.3,14.5]
[1743160098464,2.59927387,1909.5,1909.4,0.20335288]
[1743160098633,2.59927387,1909.5,1909.3,5.2375]
[1743160098834,2.59927387,1909.5,1909.4,0.20335288]
[1743160099030,7.83578387,1909.7,1909.4,14.5]
[1743160099265,7.83578387,1909.7,1909.5,0.20335288]
[1743160099772,10.47249,1909.8,1909.5,0.20335288]
[1743160099933,13.07176387,1909.8,1909.6,14.5]
[1743160100134,13.07176387,1909.8,1909.6,14.70741116]
[1743160100442,5.23642,1909.7,1909.6,14.70741116]
[1743160101055,5.23642,1909.7,1909.6,0.20741116]
[1743160101362,5.23642,1909.7,1909.4,5.99981]
[1743160101583,5.23642,1909.7,1909.5,14.5]
[1743160101884,5.23642,1909.7,1909.6,0.20741116]
[1743160102243,6.54360439,1909.7,1909.6,0.20741116]
[1743160102444,5.23674,1909.6,1909.2,11.10892]
[1743160102671,7.83601387,1909.6,1909.3,14.70741116]
[1743160103264,5.23697,1909.5,1909.3,14.70741116]
[1743160103463,7.83601387,1909.6,1909.3,14.70741116]
[1743160103679,7.83601387,1909.6,1909.3,17.28904428]
[1743160103882,6.01824,1909.7,1909.3,0.20741116]
[1743160104054,7.83544387,1909.8,1909.4,5.23713]
[1743160104249,2.59927387,1909.8,1909.5,14.71120754]
[1743160104440,2.59927387,1909.8,1909.5,20.72607754]
[1743160104647,7.83542387,1909.8,1909.5,20.72607754]
[1743160104863,13.07176387,1909.8,1909.5,15.48920754]
[1743160105183,13.07176387,1909.8,1909.5,17.56183729]
[1743160105384,13.07176387,1909.8,1909.5,3.06183729]
[1743160105583,13.07176387,1909.8,1909.5,0.98920754]
[1743160105880,5.23644,1909.7,1909.5,0.98920754]
[1743160106451,10.4731,1909.7,1909.5,0.98920754]
[1743160106662,2.59927387,1909.6,1909.5,0.21120754]
[1743160106849,2.59927387,1909.6,1909.3,6.04821]
[1743160107050,2.59927387,1909.6,1909.4,0.21120754]
[1743160107252,5.23713,1909.5,1909.3,22.0801398]
[1743160107445,5.23713,1909.5,1909.4,0.21120754]
[1743160107671,5.23713,1909.5,1909.3,5.032]
[1743160107672,5.23724,1909.4,1909.3,5.032]
[1743160107984,5.23724,1909.4,1909.3,5.24255281]
[1743160108550,5.23724,1909.4,1909.3,0.21055281]
[1743160108750,7.83640387,1909.5,1909.1,30.79607]
[1743160108945,7.83640387,1909.5,1909.2,1.23900552]
[1743160109159,13.07354387,1909.5,1909.2,1.23900552]
[1743160109351,3.0,1909.6,1909.3,5.23743]
[1743160109765,13.47365,1909.6,1909.4,14.71055281]
[1743160109965,5.23674,1909.6,1909.4,14.71055281]
[1743160110367,10.47364,1909.6,1909.4,14.71055281]
[1743160111275,5.23697,1909.5,1909.4,14.71055281]
[1743160112999,5.23697,1909.5,1909.4,0.21055281]
[1743160113184,5.23697,1909.5,1909.2,6.26608271]
[1743160113381,5.23697,1909.5,1909.3,0.8381432]
[1743160113587,5.23674,1909.6,1909.3,0.8381432]
[1743160113988,10.47364,1909.6,1909.3,0.8381432]
[1743160115400,10.47364,1909.6,1909.3,15.3381432]
[1743160116505,5.23698,1909.5,1909.3,15.3381432]
[1743160116811,5.23698,1909.5,1909.4,1.53381432]
[1743160117175,5.23698,1909.5,1909.4,1.74534925]
[1743160117907,5.23674,1909.6,1909.4,1.74534925]
[1743160118206,10.47363,1909.6,1909.4,1.74534925]
[1743160118411,10.47363,1909.6,1909.4,0.21153493]
[1743160118612,10.47363,1909.6,1909.3,15.12660827]
[1743160118776,10.47363,1909.6,1909.4,0.21160034]
[1743160118978,10.47363,1909.6,1909.3,15.12660827]
[1743160119181,10.47363,1909.6,1909.4,0.21160034]
[1743160119383,5.23674,1909.6,1909.3,15.12660827]
[1743160119616,2.59927387,1909.7,1909.4,7.72677117]
[1743160119811,5.23618,1909.8,1909.4,7.72666117]
[1743160120002,5.2365,1909.7,1909.4,7.72666117]
[1743160120311,5.2365,1909.7,1909.4,22.22666117]
[1743160120732,5.23618,1909.8,1909.4,27.46376117]
[1743160120886,5.23618,1909.8,1909.5,2.74637612]
[1743160121319,5.23646,1909.7,1909.6,0.21160034]
[1743160121740,8.65358387,1909.9,1909.6,0.21160034]
[1743160122391,13.88961387,1909.9,1909.6,0.21160034]
[1743160123026,5.23616,1909.8,1909.6,0.21160034]
[1743160123227,8.65358387,1909.9,1909.6,1.0363174]
[1743160123434,7.83518387,1909.9,1909.6,1.0363174]
[1743160123798,5.23535,1910.1,1909.8,5.23611]
[1743160124322,5.23535,1910.1,1909.9,0.21160034]
[1743160124635,5.23535,1910.1,1909.8,5.23611]
[1743160124793,5.23535,1910.1,1909.9,0.21160034]
[1743160124992,5.23535,1910.1,1909.8,5.23611]
[1743160125192,10.4709,1910.1,1909.9,0.21160034]
[1743160125416,5.23562,1910.0,1909.7,20.53196]
[1743160125600,5.23562,1910.0,1909.8,0.21160034]
[1743160131324,13.07014387,1910.1,1909.8,0.21160034]
[1743160131690,5.23562,1910.0,1909.8,0.21160034]
[1743160132722,13.07018387,1910.1,1909.8,0.21160034]
[1743160133224,7.83464387,1910.1,1909.8,0.21160034]
[1743160133430,7.83464387,1910.1,1909.8,6.59558037]
[1743160133601,2.59927387,1910.1,1909.8,6.59552037]
[1743160133803,3.0,1910.2,1909.9,5.23577]
[1743160134144,13.06792387,1910.5,1910.1,5.23508]
[1743160134427,7.83351387,1910.5,1910.2,0.20708319]
[1743160134729,7.83377387,1910.4,1910.2,0.20708319]
[1743160134928,2.59927387,1910.3,1910.2,0.20708319]
[1743160135113,7.83404387,1910.3,1910.2,0.20708319]
[1743160135296,7.83404387,1910.3,1910.0,6.04149]
[1743160135623,7.83404387,1910.3,1910.1,0.20708319]
[1743160135624,2.59927387,1910.3,1910.1,0.20708319]
[1743160136124,2.59927387,1910.3,1910.1,5.44238319]
[1743160136500,5.2345,1910.4,1910.1,5.44238319]
[1743160137743,6.04743,1910.5,1910.2,5.23495]
[1743160137949,5.23423,1910.5,1910.1,10.67750319]
[1743160138103,7.83377387,1910.4,1910.3,0.20439988]
[1743160138649,7.83377387,1910.4,1910.1,5.23512]
[1743160138804,7.83377387,1910.4,1910.2,0.20439988]
[1743160139343,7.83386387,1910.4,1910.2,0.20439988]
[1743160140203,13.06854387,1910.4,1910.2,0.20439988]
[1743160140543,7.83386387,1910.4,1910.2,0.20439988]
[1743160140745,5.23477,1910.3,1910.2,0.20439988]
[1743160141433,5.23477,1910.3,1910.0,12.663549]
[1743160141637,5.23477,1910.3,1910.1,0.20439988]
[1743160141939,8.65116387,1910.4,1910.1,5.43969988]
[1743160142135,13.88583387,1910.4,1910.1,5.43969988]
[1743160142439,13.88586387,1910.4,1910.1,0.20439988]
[1743160142939,8.65116387,1910.4,1910.1,0.20439988]
[1743160143257,5.23479,1910.3,1910.1,2.01473377]
[1743160143727,10.46976,1910.3,1910.1,2.01473377]
[1743160143924,10.46976,1910.3,1910.1,0.20439988]
[1743160144117,5.23479,1910.3,1910.1,0.20439988]
[1743160144641,2.59927387,1910.2,1910.1,0.20439988]
[1743160144935,3.0,1910.6,1910.1,1.08125005]
[1743160145136,13.06700387,1910.7,1910.3,5.23462]
[1743160145346,5.23396,1910.6,1910.4,0.523462]
[1743160145716,5.23396,1910.6,1910.5,0.20439988]
[1743160145911,2.59927387,1910.7,1910.5,0.20439988]
[1743160146124,7.83295387,1910.7,1910.5,0.20439988]
[1743160146650,7.83295387,1910.7,1910.5,0.80062507]
[1743160150012,2.59927387,1910.7,1910.5,6.03477507]
[1743160150240,2.59927387,1910.7,1910.5,6.84247507]
[1743160150412,2.59927387,1910.7,1910.5,1.60832507]
[1743160150626,7.83299387,1910.7,1910.5,1.60832507]
[1743160151014,2.59927387,1910.7,1910.5,1.60832507]
[1743160151348,2.59927387,1910.7,1910.5,6.84244507]
[1743160151563,7.83269387,1910.8,1910.6,0.68424451]
[1743160151850,13.06629387,1910.8,1910.6,0.68424451]
[1743160152026,13.06629387,1910.8,1910.7,0.20086657]
[1743160152226,13.06629387,1910.8,1910.5,1.40392519]
[1743160152426,10.46701,1910.8,1910.6,0.20086657]
[1743160152626,13.06626387,1910.8,1910.6,0.20086657]
[1743160153058,2.59927387,1910.7,1910.6,0.20086657]
[1743160153856,0.8045,1910.9,1910.6,0.20086657]
[1743160154022,7.83213387,1911.0,1910.6,5.43476657]
[1743160154223,7.83213387,1911.0,1910.7,5.77706666]
[1743160154435,7.83213387,1911.0,1910.8,0.20021239]
[1743160155024,2.59927387,1911.0,1910.8,0.20021239]
[1743160155534,9.0429,1911.1,1910.8,0.20021239]
[1743160155535,2.59927387,1910.9,1910.8,0.20021239]
[1743160156657,2.59927387,1911.0,1910.8,0.20021239]
[1743160156862,2.59927387,1911.0,1910.8,1.3212833]
[1743160157161,2.59927387,1910.9,1910.8,1.3212833]
[1743160157460,2.59927387,1910.9,1910.8,0.20021239]
[1743160157757,2.59927387,1910.9,1910.7,5.23365]
[1743160157954,2.59927387,1910.9,1910.8,0.20021239]
[1743160158425,2.59927387,1910.9,1910.6,5.23379]
[1743160158752,2.59927387,1910.8,1910.7,0.20021239]
[1743160158959,2.59927387,1910.8,1910.7,0.74361263]
[1743160159960,2.59927387,1910.8,1910.7,5.97729263]
[1743160160256,2.59927387,1910.9,1910.7,5.97729263]
[1743160161661,2.59927387,1910.9,1910.7,0.74361263]
[1743160162458,2.59927387,1910.9,1910.7,5.97727263]
[1743160162770,2.59927387,1910.9,1910.8,0.59772726]
[1743160163383,0.8147,1911.8,1911.4,0.7543]
[1743160163664,1.18937049,1911.9,1911.8,5.23067]
[1743160163838,1.18937049,1911.9,1911.8,26.65861994]
[1743160164037,1.18937049,1911.9,1911.8,12.29672344]
[1743160164571,0.05,1911.9,1911.8,12.29672344]
[1743160170739,1e-05,1911.9,1911.8,15.44599731]
[1743160171174,1e-05,1911.9,1911.8,21.47599731]
[1743160171475,1e-05,1911.9,1911.8,24.47599731]
[1743160173379,1e-05,1911.9,1911.8,13.30772344]
[1743160173537,1e-05,1911.9,1911.8,18.31072344]
[1743160175542,1e-05,1911.9,1911.8,20.90999731]
[1743160176070,1e-05,1911.9,1911.8,21.45999731]
[1743160176635,1e-05,1911.9,1911.8,19.45699731]
[1743160176789,1e-05,1911.9,1911.8,24.45999731]
[1743160176960,1e-05,1911.9,1911.8,38.95999731]
[1743160177483,1e-05,1911.9,1911.8,35.95999731]
[1743160180276,1e-05,1911.9,1911.8,27.80772344]
[1743160180475,1e-05,1911.9,1911.8,18.31372344]
[1743160180951,1e-05,1911.9,1911.8,32.81372344]
[1743160181150,1e-05,1911.9,1911.8,33.36372344]
[1743160182161,1e-05,1911.9,1911.8,27.33372344]
[1743160183103,1e-05,1911.9,1911.8,6.46722344]
[1743160183306,1e-05,1911.9,1911.8,0.19040344]
[1743160184067,1e-05,1911.9,1911.8,5.42107344]
[1743160184883,1e-05,1911.9,1911.8,0.19040344]
[1743160185081,0.78581,1911.9,1911.8,5.20340344]
[1743160185920,1e-05,1911.9,1911.8,10.43407344]
[1743160186208,1e-05,1911.9,1911.8,12.47848204]
[1743160186570,1.06913494,1912.6,1912.5,5.22875]
[1743160186771,0.8043,1912.8,1912.5,5.049]
[1743160187014,0.8043,1912.8,1912.7,5.22821]
[1743160187213,3.7868,1913.1,1912.8,5.22793]
[1743160187487,3.7868,1913.1,1912.9,0.16147346]
[1743160187488,0.7868,1913.1,1912.9,0.16147346]
[1743160187701,0.7868,1913.1,1912.8,10.50786348]
[1743160187909,0.7868,1913.1,1912.9,0.15664852]
[1743160188115,6.01392,1913.1,1912.8,5.22778]
[1743160188310,2.59927387,1913.0,1912.9,0.15664852]
[1743160188616,2.59927387,1913.0,1912.7,5.22801]
[1743160188617,2.59927387,1913.0,1912.7,10.45613]
[1743160188909,2.59927387,1913.0,1912.8,5.22793]
[1743160189215,2.59927387,1913.0,1912.9,0.15664852]
[1743160189578,2.59927387,1913.0,1912.8,5.22792]
[1743160189773,2.59927387,1913.0,1912.9,0.15664852]
[1743160190291,2.59927387,1913.2,1912.9,10.43321852]
[1743160190590,2.59927387,1913.2,1912.9,15.66078852]
[1743160190969,2.59927387,1913.2,1912.9,15.66070852]
[1743160191374,7.82616387,1913.2,1912.9,10.43314852]
[1743160191624,9.02412,1913.3,1912.9,10.43314852]
[1743160191625,6.02412,1913.3,1912.9,5.20564852]
[1743160191906,8.62339387,1913.3,1913.0,5.2273]
[1743160192099,8.62339387,1913.3,1912.9,12.24700485]
[1743160192299,8.62339387,1913.3,1913.0,5.38402852]
[1743160192602,13.85012387,1913.3,1913.0,0.15664852]
[1743160192808,8.62339387,1913.3,1913.0,5.38403852]
[1743160193171,5.22694,1913.2,1913.0,0.15664852]
[1743160193695,2.59927387,1913.1,1913.0,0.15664852]
[1743160194210,7.82638387,1913.1,1913.0,0.15664852]
[1743160194398,8.58578387,1913.1,1913.0,0.15664852]
[1743160195106,13.81307387,1913.1,1912.8,5.067]
[1743160195407,5.98651,1913.1,1912.9,0.15664852]
[1743160195614,8.58578387,1913.1,1912.9,0.15664852]
[1743160195916,3.35867387,1913.1,1913.0,0.15664852]
[1743160196574,3.35867387,1913.1,1912.8,11.32431]
[1743160196801,3.35867387,1913.1,1913.0,0.15664852]
[1743160196990,3.35867387,1913.1,1912.8,11.32431]
[1743160197319,3.35867387,1913.1,1912.9,1.132431]
[1743160197492,3.35867387,1913.1,1913.0,0.15228102]
[1743160199387,0.7594,1913.1,1913.0,0.15228102]
[1743160201109,0.753,1913.3,1913.0,5.37942102]
[1743160201309,0.753,1913.3,1913.1,5.7649621]
[1743160201499,7.82557387,1913.4,1913.1,5.7649621]
[1743160201699,7.82557387,1913.4,1913.2,0.15228102]
[1743160202107,2.59927387,1913.4,1913.2,0.15228102]
[1743160203343,2.59927387,1913.4,1913.2,5.37910102]
[1743160203502,2.59927387,1913.4,1913.2,1.26668333]
[1743160203822,13.05213387,1913.4,1913.2,1.26668333]
[1743160203986,5.22657,1913.3,1913.2,0.15228102]
[1743160204494,5.22657,1913.3,1912.9,11.587621]
[1743160204693,5.22657,1913.3,1913.0,5.37967102]
[1743160204996,5.22657,1913.3,1913.0,5.43194013]
[1743160205197,7.82559387,1913.4,1913.1,5.2271]
[1743160205407,7.82559387,1913.4,1913.2,0.52271]
[1743160205607,2.59927387,1913.4,1913.2,0.52271]
[1743160205819,2.59927387,1913.4,1913.3,0.15228102]
[1743160206020,7.82556387,1913.4,1913.3,0.15228102]
[1743160206221,11.60496387,1913.4,1913.3,0.15228102]
[1743160206422,11.60496387,1913.4,1912.6,27.648]
[1743160206423,0.8277,1912.9,1912.6,27.648]
[1743160206643,7.82729387,1912.8,1912.6,27.648]
[1743160206916,7.82662387,1913.1,1912.7,5.22811]
[1743160207122,7.82662387,1913.1,1912.8,5.076]
[1743160207500,7.82662387,1913.1,1912.8,10.3039]
[1743160207682,7.82662387,1913.1,1912.8,12.66252863]
[1743160207890,2.59927387,1913.1,1912.8,12.66242863]
[1743160208094,7.82640387,1913.1,1912.8,12.66242863]
[1743160209598,13.05372387,1913.1,1912.8,7.43462863]
[1743160209796,13.05372387,1913.1,1912.8,6.63442863]
[1743160210737,7.82703387,1912.9,1912.6,27.648]
[1743160211034,5.22809,1912.8,1912.6,27.648]
[1743160211233,13.05480387,1912.9,1912.6,27.648]
[1743160211438,5.22802,1912.8,1912.6,27.648]
[1743160211820,7.82697387,1912.9,1912.6,27.648]
[1743160212023,13.05484387,1912.9,1912.6,27.648]